[Event "Titled Tuesday Blitz April 19 Early 2022"]
[White "Pakleza, Zbigniew"]
[Black "Dev, Shah"]
[WhiteFideId "1119290"]
[BlackFideId "35019058"]
[WhiteElo "2467"]
[BlackElo "2075"]
[Result "1-0"]
[Round "07"]
[TimeControl "180+1"]
[Date "2022.04.19"]
[WhiteClock "0:00:07"]
[BlackClock "0:00:49"]

1. d4 {[%clk 0:03:00]}  d5 {[%clk 0:02:59]} 2. Bf4 {[%clk 0:03:00]}  Nf6 {[%clk 0:02:59]} 3. e3 {[%clk 0:03:01]}  e6 {[%clk 0:02:58]} 4. Nd2 {[%clk 0:03:00]}  c5 {[%clk 0:02:58]} 5. c3 {[%clk 0:03:00]}  Bd6 {[%clk 0:02:59]} 6. Bxd6 {[%clk 0:03:01]}  Qxd6 {[%clk 0:02:59]} 7. f4 {[%clk 0:03:02]}  Nc6 {[%clk 0:02:49]} 8. Ngf3 {[%clk 0:02:58]}  cxd4 {[%clk 0:02:49]} 9. cxd4 {[%clk 0:02:59]}  Ng4 {[%clk 0:02:43]} 10. Qb3 {[%clk 0:02:27]}  Qb4 {[%clk 0:02:33]} 11. Qxb4 {[%clk 0:01:55]}  Nxb4 {[%clk 0:02:33]} 12. Bb5+ {[%clk 0:01:55]}  Bd7 {[%clk 0:02:18]} 13. Bxd7+ {[%clk 0:01:55]}  Kxd7 {[%clk 0:02:18]} 14. Ke2 {[%clk 0:01:56]}  Nc2 {[%clk 0:02:04]} 15. Rac1 {[%clk 0:01:45]}  Ngxe3 {[%clk 0:02:05]} 16. Nf1 {[%clk 0:01:22]}  Nxg2 {[%clk 0:01:48]} 17. Ne5+ {[%clk 0:01:19]}  Ke7 {[%clk 0:01:40]} 18. Rxc2 {[%clk 0:01:18]}  f6 {[%clk 0:01:38]} 19. Nd3 {[%clk 0:00:45]}  Rac8 {[%clk 0:01:35]} 20. Rxc8 {[%clk 0:00:37]}  Rxc8 {[%clk 0:01:36]} 21. Ne3 {[%clk 0:00:37]}  Nxe3 {[%clk 0:01:29]} 22. Kxe3 {[%clk 0:00:38]}  Kd6 {[%clk 0:01:29]} 23. Rc1 {[%clk 0:00:37]}  Rg8 {[%clk 0:01:28]} 24. Nc5 {[%clk 0:00:29]}  b6 {[%clk 0:01:26]} 25. Na6 {[%clk 0:00:29]}  g5 {[%clk 0:01:24]} 26. Nc7 {[%clk 0:00:13]}  gxf4+ {[%clk 0:01:14]} 27. Kxf4 {[%clk 0:00:14]}  a6 {[%clk 0:01:13]} 28. Rc2 {[%clk 0:00:09]}  e5+ {[%clk 0:01:12]} 29. Kf5 {[%clk 0:00:07]}  Rg1 {[%clk 0:01:09]} 30. Kxf6 {[%clk 0:00:05]}  Rf1+ {[%clk 0:01:08]} 31. Kg5 {[%clk 0:00:06]}  exd4 {[%clk 0:01:08]} 32. Nxa6 {[%clk 0:00:06]}  Ke5 {[%clk 0:01:05]} 33. Nb4 {[%clk 0:00:06]}  Rg1+ {[%clk 0:01:03]} 34. Kh4 {[%clk 0:00:06]}  Kf4 {[%clk 0:01:02]} 35. Rd2 {[%clk 0:00:05]}  Ke3 {[%clk 0:01:01]} 36. Rd3+ {[%clk 0:00:06]}  Ke4 {[%clk 0:01:01]} 37. Rd2 {[%clk 0:00:05]}  Ke3 {[%clk 0:00:59]} 38. Rd3+ {[%clk 0:00:06]}  Ke4 {[%clk 0:00:59]} 39. Rb3 {[%clk 0:00:06]}  Rg6 {[%clk 0:00:54]} 40. a4 {[%clk 0:00:05]}  Kf4 {[%clk 0:00:52]} 41. Nxd5+ {[%clk 0:00:05]}  Ke4 {[%clk 0:00:52]} 42. Nxb6 {[%clk 0:00:05]}  Kf4 {[%clk 0:00:52]} 43. Nd5+ {[%clk 0:00:05]}  Ke4 {[%clk 0:00:53]} 44. Nb4 {[%clk 0:00:05]}  Kf4 {[%clk 0:00:53]} 45. Kh3 {[%clk 0:00:06]}  Ke4 {[%clk 0:00:50]} 46. a5 {[%clk 0:00:06]}  h5 {[%clk 0:00:50]} 47. a6 {[%clk 0:00:05]}  Kf4 {[%clk 0:00:49]} 48. a7 {[%clk 0:00:05]}  Rg8 {[%clk 0:00:50]} 49. Ra3 {[%clk 0:00:05]}  Ra8 {[%clk 0:00:49]} 50. Nd3+ {[%clk 0:00:05]}  Ke3 {[%clk 0:00:48]} 51. b4 {[%clk 0:00:06]}  Kd2 {[%clk 0:00:48]} 52. b5 {[%clk 0:00:06]}  Kc2 {[%clk 0:00:48]} 53. b6 {[%clk 0:00:07]}  h4 {[%clk 0:00:49]} 54. b7 {[%clk 0:00:07]} 1-0


[Site "https://www.chess.com"]

[Event "Titled Tuesday Blitz April 19 Early 2022"]
[White "Palacio,Igor Da Paz"]
[Black "Winkels, Marcel"]
[WhiteFideId "2121140"]
[BlackFideId "1003887"]
[WhiteElo "2144"]
[BlackElo "1900"]
[Result "1-0"]
[Round "07"]
[TimeControl "180+1"]
[Date "2022.04.19"]
[WhiteClock "0:00:04"]
[BlackClock "0:00:02"]

1. e4 {[%clk 0:03:00]}  c5 {[%clk 0:02:57]} 2. Nc3 {[%clk 0:03:00]}  d6 {[%clk 0:02:57]} 3. g3 {[%clk 0:03:00]}  Nc6 {[%clk 0:02:57]} 4. Bg2 {[%clk 0:03:00]}  g6 {[%clk 0:02:57]} 5. d3 {[%clk 0:03:00]}  Bg7 {[%clk 0:02:58]} 6. f4 {[%clk 0:03:01]}  e6 {[%clk 0:02:56]} 7. Nf3 {[%clk 0:03:01]}  Nge7 {[%clk 0:02:56]} 8. O-O {[%clk 0:03:01]}  O-O {[%clk 0:02:56]} 9. Be3 {[%clk 0:02:59]}  b6 {[%clk 0:02:52]} 10. d4 {[%clk 0:02:58]}  d5 {[%clk 0:02:49]} 11. exd5 {[%clk 0:02:48]}  exd5 {[%clk 0:02:40]} 12. Bf2 {[%clk 0:02:38]}  c4 {[%clk 0:02:37]} 13. Ne5 {[%clk 0:02:30]}  Bb7 {[%clk 0:02:24]} 14. Re1 {[%clk 0:02:19]}  f6 {[%clk 0:02:22]} 15. Nxc6 {[%clk 0:02:01]}  Bxc6 {[%clk 0:02:17]} 16. Qe2 {[%clk 0:01:38]}  Re8 {[%clk 0:02:03]} 17. Qe6+ {[%clk 0:01:36]}  Kh8 {[%clk 0:02:01]} 18. Qf7 {[%clk 0:01:33]}  Rc8 {[%clk 0:01:47]} 19. Re2 {[%clk 0:01:04]}  Nf5 {[%clk 0:01:24]} 20. Rxe8+ {[%clk 0:00:54]}  Qxe8 {[%clk 0:01:20]} 21. Qxe8+ {[%clk 0:00:51]}  Rxe8 {[%clk 0:01:19]} 22. Nxd5 {[%clk 0:00:24]}  Rd8 {[%clk 0:00:48]} 23. Nb4 {[%clk 0:00:23]}  Bxg2 {[%clk 0:00:47]} 24. Kxg2 {[%clk 0:00:23]}  Re8 {[%clk 0:00:32]} 25. Kf3 {[%clk 0:00:19]}  g5 {[%clk 0:00:31]} 26. c3 {[%clk 0:00:12]}  h5 {[%clk 0:00:27]} 27. h3 {[%clk 0:00:11]}  Nh6 {[%clk 0:00:21]} 28. Re1 {[%clk 0:00:10]}  g4+ {[%clk 0:00:19]} 29. hxg4 {[%clk 0:00:11]}  h4 {[%clk 0:00:17]} 30. Rxe8+ {[%clk 0:00:10]}  Kh7 {[%clk 0:00:08]} 31. gxh4 {[%clk 0:00:08]}  Nf7 {[%clk 0:00:07]} 32. Re7 {[%clk 0:00:03]}  Nd6 {[%clk 0:00:07]} 33. Rxa7 {[%clk 0:00:02]}  f5 {[%clk 0:00:07]} 34. Rxg7+ {[%clk 0:00:03]}  Kxg7 {[%clk 0:00:06]} 35. g5 {[%clk 0:00:04]}  Kg6 {[%clk 0:00:06]} 36. Nd5 {[%clk 0:00:04]}  Ne4 {[%clk 0:00:04]} 37. Ne7+ {[%clk 0:00:04]}  Kf7 {[%clk 0:00:03]} 38. Nxf5 {[%clk 0:00:04]}  Nd2+ {[%clk 0:00:02]} 39. Ke2 {[%clk 0:00:04]} 1-0


[Site "https://www.chess.com"]

[Event "Titled Tuesday Blitz April 19 Early 2022"]
[White "Paravyan, David"]
[Black "Weetik, Vjacheslav"]
[WhiteFideId "4194985"]
[BlackFideId "4153472"]
[WhiteElo "2569"]
[BlackElo "2469"]
[Result "1-0"]
[Round "07"]
[TimeControl "180+1"]
[Date "2022.04.19"]
[WhiteClock "0:02:01"]
[BlackClock "0:01:14"]

1. e4 {[%clk 0:02:55]}  c6 {[%clk 0:03:00]} 2. d4 {[%clk 0:02:55]}  d5 {[%clk 0:03:00]} 3. e5 {[%clk 0:02:56]}  Bf5 {[%clk 0:03:00]} 4. Nf3 {[%clk 0:02:56]}  e6 {[%clk 0:03:01]} 5. Be2 {[%clk 0:02:57]}  Nd7 {[%clk 0:03:01]} 6. O-O {[%clk 0:02:56]}  Bg6 {[%clk 0:03:01]} 7. a4 {[%clk 0:02:55]}  Nh6 {[%clk 0:03:02]} 8. Bxh6 {[%clk 0:02:55]}  gxh6 {[%clk 0:03:02]} 9. a5 {[%clk 0:02:56]}  Rg8 {[%clk 0:02:57]} 10. c4 {[%clk 0:02:53]}  dxc4 {[%clk 0:02:37]} 11. Bxc4 {[%clk 0:02:54]}  Bh5 {[%clk 0:02:18]} 12. Be2 {[%clk 0:02:53]}  Bxf3 {[%clk 0:02:13]} 13. Bxf3 {[%clk 0:02:53]}  a6 {[%clk 0:02:08]} 14. Nc3 {[%clk 0:02:53]}  Qh4 {[%clk 0:02:07]} 15. g3 {[%clk 0:02:47]}  O-O-O {[%clk 0:02:02]} 16. Bg2 {[%clk 0:02:47]}  Qe7 {[%clk 0:01:55]} 17. Qc2 {[%clk 0:02:22]}  Kb8 {[%clk 0:01:52]} 18. Ne4 {[%clk 0:02:19]}  Ka8 {[%clk 0:01:18]} 19. Nd6 {[%clk 0:02:17]}  Nb8 {[%clk 0:01:18]} 20. Nc4 {[%clk 0:02:00]}  Rxd4 {[%clk 0:01:14]} 21. Nb6+ {[%clk 0:02:00]}  Ka7 {[%clk 0:01:14]} 22. Nc8+ {[%clk 0:02:01]} 1-0


[Site "https://www.chess.com"]

[Event "Titled Tuesday Blitz April 19 Early 2022"]
[White "Pesotskiy, Mikhail"]
[Black "Soucek, Petr"]
[WhiteFideId "34164453"]
[BlackFideId "23715170"]
[WhiteElo "2010"]
[BlackElo "1979"]
[Result "1-0"]
[Round "07"]
[TimeControl "180+1"]
[Date "2022.04.19"]
[WhiteClock "0:00:14"]
[BlackClock "0:00:02"]

1. d4 {[%clk 0:02:59]}  Nf6 {[%clk 0:02:58]} 2. c4 {[%clk 0:02:59]}  g6 {[%clk 0:02:57]} 3. Nc3 {[%clk 0:02:59]}  Bg7 {[%clk 0:02:57]} 4. e4 {[%clk 0:03:00]}  O-O {[%clk 0:02:56]} 5. Be3 {[%clk 0:03:00]}  d6 {[%clk 0:02:55]} 6. f3 {[%clk 0:03:00]}  Nc6 {[%clk 0:02:52]} 7. Qd2 {[%clk 0:03:01]}  a6 {[%clk 0:02:46]} 8. Bd3 {[%clk 0:02:59]}  e5 {[%clk 0:02:40]} 9. d5 {[%clk 0:02:58]}  Nd4 {[%clk 0:02:40]} 10. Nge2 {[%clk 0:02:58]}  c5 {[%clk 0:02:19]} 11. dxc6 {[%clk 0:02:59]}  Nxc6 {[%clk 0:02:19]} 12. O-O {[%clk 0:02:52]}  Be6 {[%clk 0:02:18]} 13. Rfd1 {[%clk 0:02:51]}  Nd7 {[%clk 0:02:18]} 14. Rac1 {[%clk 0:02:49]}  f5 {[%clk 0:02:03]} 15. b3 {[%clk 0:02:44]}  f4 {[%clk 0:02:00]} 16. Bf2 {[%clk 0:02:45]}  g5 {[%clk 0:01:59]} 17. h3 {[%clk 0:02:42]}  Rf6 {[%clk 0:01:56]} 18. Bb1 {[%clk 0:02:42]}  Bf8 {[%clk 0:01:56]} 19. Nd5 {[%clk 0:02:41]}  Rg6 {[%clk 0:01:52]} 20. Kf1 {[%clk 0:02:41]}  h5 {[%clk 0:01:51]} 21. Ng1 {[%clk 0:02:23]}  g4 {[%clk 0:01:51]} 22. hxg4 {[%clk 0:02:24]}  hxg4 {[%clk 0:01:52]} 23. Nb4 {[%clk 0:02:03]}  Qg5 {[%clk 0:01:44]} 24. Nxc6 {[%clk 0:01:57]}  bxc6 {[%clk 0:01:45]} 25. Ke2 {[%clk 0:01:56]}  Qh5 {[%clk 0:01:39]} 26. Qe1 {[%clk 0:01:36]}  g3 {[%clk 0:01:36]} 27. Bb6 {[%clk 0:01:05]}  Nxb6 {[%clk 0:01:35]} 28. Kd2 {[%clk 0:01:03]}  d5 {[%clk 0:01:14]} 29. Kc2 {[%clk 0:01:00]}  dxc4 {[%clk 0:01:02]} 30. Qa5 {[%clk 0:01:00]}  cxb3+ {[%clk 0:00:57]} 31. axb3 {[%clk 0:01:01]}  Rb8 {[%clk 0:00:52]} 32. Ba2 {[%clk 0:00:59]}  Rg7 {[%clk 0:00:34]} 33. Ne2 {[%clk 0:00:44]}  Rd7 {[%clk 0:00:30]} 34. Nxf4 {[%clk 0:00:31]}  Qf7 {[%clk 0:00:14]} 35. Nxe6 {[%clk 0:00:31]}  Qxe6 {[%clk 0:00:15]} 36. b4 {[%clk 0:00:32]}  Nc4 {[%clk 0:00:11]} 37. Rxd7 {[%clk 0:00:32]}  Bxb4 {[%clk 0:00:08]} 38. Qc7 {[%clk 0:00:19]}  Ne3+ {[%clk 0:00:03]} 39. Kd3 {[%clk 0:00:17]}  Qxa2 {[%clk 0:00:02]} 40. Rg7+ {[%clk 0:00:17]}  Kf8 {[%clk 0:00:02]} 41. Qxb8+ {[%clk 0:00:13]}  Kxg7 {[%clk 0:00:02]} 42. Qxb4 {[%clk 0:00:14]} 1-0


[Site "https://www.chess.com"]

[Event "Titled Tuesday Blitz April 19 Early 2022"]
[White "Polster, Christian"]
[Black "Papp, Levente"]
[WhiteFideId "12965081"]
[BlackFideId "751243"]
[WhiteElo "2341"]
[BlackElo "2308"]
[Result "0-1"]
[Round "07"]
[TimeControl "180+1"]
[Date "2022.04.19"]
[WhiteClock "0:00:28"]
[BlackClock "0:01:55"]

1. e4 {[%clk 0:03:00]}  e6 {[%clk 0:03:00]} 2. d4 {[%clk 0:03:00]}  d5 {[%clk 0:03:00]} 3. Nc3 {[%clk 0:03:00]}  Bb4 {[%clk 0:02:59]} 4. e5 {[%clk 0:02:58]}  Ne7 {[%clk 0:03:00]} 5. a3 {[%clk 0:02:42]}  Bxc3+ {[%clk 0:02:59]} 6. bxc3 {[%clk 0:02:42]}  b6 {[%clk 0:03:00]} 7. Qg4 {[%clk 0:02:42]}  Ng6 {[%clk 0:03:00]} 8. h4 {[%clk 0:02:41]}  h5 {[%clk 0:03:01]} 9. Qg3 {[%clk 0:02:40]}  Ba6 {[%clk 0:03:01]} 10. Bxa6 {[%clk 0:02:38]}  Nxa6 {[%clk 0:03:02]} 11. Bg5 {[%clk 0:02:32]}  Qd7 {[%clk 0:03:02]} 12. Qd3 {[%clk 0:02:25]}  Qa4 {[%clk 0:03:00]} 13. Ne2 {[%clk 0:02:12]}  c5 {[%clk 0:03:00]} 14. f4 {[%clk 0:02:01]}  cxd4 {[%clk 0:02:37]} 15. Nxd4 {[%clk 0:01:35]}  Nc5 {[%clk 0:02:33]} 16. Qb5+ {[%clk 0:01:35]}  Qxb5 {[%clk 0:02:33]} 17. Nxb5 {[%clk 0:01:35]}  Kd7 {[%clk 0:02:29]} 18. O-O {[%clk 0:01:28]}  Ne7 {[%clk 0:02:26]} 19. Bxe7 {[%clk 0:01:26]}  Kxe7 {[%clk 0:02:26]} 20. f5 {[%clk 0:01:23]}  Ne4 {[%clk 0:02:25]} 21. Rf4 {[%clk 0:01:11]}  Rac8 {[%clk 0:01:59]} 22. Raf1 {[%clk 0:00:59]}  Ng3 {[%clk 0:01:59]} 23. f6+ {[%clk 0:00:40]}  gxf6 {[%clk 0:01:59]} 24. exf6+ {[%clk 0:00:41]}  Kd7 {[%clk 0:01:58]} 25. R1f3 {[%clk 0:00:41]}  Ne2+ {[%clk 0:01:57]} 26. Kf2 {[%clk 0:00:39]}  Nxf4 {[%clk 0:01:58]} 27. Rxf4 {[%clk 0:00:39]}  a6 {[%clk 0:01:55]} 28. Nd4 {[%clk 0:00:28]}  e5 {[%clk 0:01:55]} 0-1


[Site "https://www.chess.com"]

[Event "Titled Tuesday Blitz April 19 Early 2022"]
[White "Popadic, Dragan"]
[Black "Ezat, Mohamed"]
[WhiteFideId "913650"]
[BlackFideId "10600906"]
[WhiteElo "2203"]
[BlackElo "2386"]
[Result "0-1"]
[Round "07"]
[TimeControl "180+1"]
[Date "2022.04.19"]
[WhiteClock "0:01:12"]
[BlackClock "0:01:05"]

1. e4 {[%clk 0:02:58]}  Nf6 {[%clk 0:02:59]} 2. e5 {[%clk 0:02:58]}  Nd5 {[%clk 0:02:58]} 3. d4 {[%clk 0:02:58]}  d6 {[%clk 0:02:58]} 4. Nf3 {[%clk 0:02:56]}  Bg4 {[%clk 0:02:55]} 5. Be2 {[%clk 0:02:55]}  e6 {[%clk 0:02:55]} 6. exd6 {[%clk 0:02:54]}  cxd6 {[%clk 0:02:53]} 7. h3 {[%clk 0:02:54]}  Bh5 {[%clk 0:02:52]} 8. c4 {[%clk 0:02:54]}  Nb6 {[%clk 0:02:52]} 9. Nc3 {[%clk 0:02:54]}  Be7 {[%clk 0:02:52]} 10. g4 {[%clk 0:02:54]}  Bg6 {[%clk 0:02:51]} 11. d5 {[%clk 0:02:54]}  e5 {[%clk 0:02:47]} 12. Bd3 {[%clk 0:02:54]}  N8d7 {[%clk 0:02:45]} 13. Be3 {[%clk 0:02:54]}  Rc8 {[%clk 0:02:44]} 14. b3 {[%clk 0:02:54]}  Nc5 {[%clk 0:02:41]} 15. Bxc5 {[%clk 0:02:52]}  Rxc5 {[%clk 0:02:40]} 16. h4 {[%clk 0:02:49]}  Bxd3 {[%clk 0:02:38]} 17. Qxd3 {[%clk 0:02:49]}  Rc8 {[%clk 0:02:38]} 18. Ne4 {[%clk 0:02:48]}  Nd7 {[%clk 0:02:37]} 19. Nfd2 {[%clk 0:02:47]}  h5 {[%clk 0:02:28]} 20. g5 {[%clk 0:02:44]}  Nf8 {[%clk 0:02:28]} 21. Ng3 {[%clk 0:02:38]}  Ng6 {[%clk 0:02:27]} 22. Nf5 {[%clk 0:02:38]}  Nf4 {[%clk 0:02:24]} 23. Qf3 {[%clk 0:02:22]}  O-O {[%clk 0:02:10]} 24. O-O {[%clk 0:02:01]}  Qd7 {[%clk 0:02:05]} 25. Nxe7+ {[%clk 0:01:49]}  Qxe7 {[%clk 0:02:04]} 26. Ne4 {[%clk 0:01:49]}  f5 {[%clk 0:01:53]} 27. gxf6 {[%clk 0:01:43]}  Rxf6 {[%clk 0:01:52]} 28. Nxf6+ {[%clk 0:01:38]}  Qxf6 {[%clk 0:01:52]} 29. Kh2 {[%clk 0:01:37]}  Qxh4+ {[%clk 0:01:51]} 30. Kg1 {[%clk 0:01:32]}  Rf8 {[%clk 0:01:45]} 31. Rfe1 {[%clk 0:01:27]}  Rf6 {[%clk 0:01:45]} 32. Re4 {[%clk 0:01:24]}  Qg5+ {[%clk 0:01:08]} 33. Kf1 {[%clk 0:01:17]}  Nxd5 {[%clk 0:01:06]} 34. Qg3 {[%clk 0:01:12]}  Qxg3 {[%clk 0:01:05]} 0-1


[Site "https://www.chess.com"]

[Event "Titled Tuesday Blitz April 19 Early 2022"]
[White "Przybylski, Wojciech"]
[Black "Ardila, Oscar Humberto"]
[WhiteFideId "1117599"]
[BlackFideId "4404742"]
[WhiteElo "2133"]
[BlackElo "1983"]
[Result "1-0"]
[Round "07"]
[TimeControl "180+1"]
[Date "2022.04.19"]
[WhiteClock "0:00:25"]
[BlackClock "0:00:04"]

1. d4 {[%clk 0:02:58]}  Nf6 {[%clk 0:02:59]} 2. c4 {[%clk 0:02:59]}  g6 {[%clk 0:03:00]} 3. Nc3 {[%clk 0:02:58]}  Bg7 {[%clk 0:03:00]} 4. e4 {[%clk 0:02:58]}  d6 {[%clk 0:03:01]} 5. Nf3 {[%clk 0:02:57]}  O-O {[%clk 0:03:01]} 6. h3 {[%clk 0:02:58]}  Nbd7 {[%clk 0:03:01]} 7. Be3 {[%clk 0:02:57]}  e5 {[%clk 0:03:01]} 8. d5 {[%clk 0:02:57]}  Nc5 {[%clk 0:02:59]} 9. Nd2 {[%clk 0:02:56]}  a5 {[%clk 0:02:58]} 10. g4 {[%clk 0:02:54]}  c6 {[%clk 0:02:58]} 11. Bg2 {[%clk 0:02:53]}  cxd5 {[%clk 0:02:57]} 12. Nxd5 {[%clk 0:02:52]}  Nxd5 {[%clk 0:02:55]} 13. cxd5 {[%clk 0:02:52]}  Nd3+ {[%clk 0:02:54]} 14. Kf1 {[%clk 0:02:52]}  b6 {[%clk 0:02:17]} 15. b3 {[%clk 0:02:45]}  Ba6 {[%clk 0:02:12]} 16. Kg1 {[%clk 0:02:46]}  Rc8 {[%clk 0:02:08]} 17. Nc4 {[%clk 0:02:43]}  Bxc4 {[%clk 0:02:07]} 18. bxc4 {[%clk 0:02:43]}  Nf4 {[%clk 0:02:04]} 19. Bf1 {[%clk 0:02:41]}  f5 {[%clk 0:01:57]} 20. Rb1 {[%clk 0:02:38]}  Rb8 {[%clk 0:01:57]} 21. Qd2 {[%clk 0:02:18]}  fxe4 {[%clk 0:01:55]} 22. Bg2 {[%clk 0:02:15]}  Nxg2 {[%clk 0:01:37]} 23. Kxg2 {[%clk 0:02:15]}  Qf6 {[%clk 0:01:35]} 24. Qe2 {[%clk 0:02:09]}  Qf3+ {[%clk 0:01:01]} 25. Qxf3 {[%clk 0:02:02]}  exf3+ {[%clk 0:01:02]} 26. Kg3 {[%clk 0:01:58]}  e4 {[%clk 0:01:03]} 27. h4 {[%clk 0:01:50]}  Be5+ {[%clk 0:01:02]} 28. Kh3 {[%clk 0:01:49]}  Rfc8 {[%clk 0:00:57]} 29. Rhc1 {[%clk 0:01:47]}  h5 {[%clk 0:00:55]} 30. Rxb6 {[%clk 0:01:41]}  Rxb6 {[%clk 0:00:54]} 31. Bxb6 {[%clk 0:01:41]}  hxg4+ {[%clk 0:00:53]} 32. Kxg4 {[%clk 0:01:40]}  Kf7 {[%clk 0:00:45]} 33. Be3 {[%clk 0:01:31]}  a4 {[%clk 0:00:38]} 34. c5 {[%clk 0:01:20]}  dxc5 {[%clk 0:00:37]} 35. Rxc5 {[%clk 0:01:20]}  Rxc5 {[%clk 0:00:31]} 36. Bxc5 {[%clk 0:01:20]}  Kf6 {[%clk 0:00:29]} 37. Bb6 {[%clk 0:01:15]}  Ke7 {[%clk 0:00:26]} 38. Kg5 {[%clk 0:00:53]}  Kd6 {[%clk 0:00:26]} 39. Kxg6 {[%clk 0:00:52]}  Kxd5 {[%clk 0:00:26]} 40. h5 {[%clk 0:00:51]}  Bd4 {[%clk 0:00:18]} 41. Bxd4 {[%clk 0:00:38]}  Kxd4 {[%clk 0:00:19]} 42. h6 {[%clk 0:00:38]}  e3 {[%clk 0:00:20]} 43. h7 {[%clk 0:00:36]}  exf2 {[%clk 0:00:15]} 44. h8=Q+ {[%clk 0:00:36]}  Ke3 {[%clk 0:00:15]} 45. Qe5+ {[%clk 0:00:34]}  Kd2 {[%clk 0:00:15]} 46. Qd4+ {[%clk 0:00:33]}  Ke2 {[%clk 0:00:15]} 47. Qe4+ {[%clk 0:00:33]}  Kd2 {[%clk 0:00:11]} 48. Qxf3 {[%clk 0:00:33]}  Ke1 {[%clk 0:00:11]} 49. Qe4+ {[%clk 0:00:31]}  Kd2 {[%clk 0:00:08]} 50. Qf3 {[%clk 0:00:27]}  Ke1 {[%clk 0:00:08]} 51. Qe3+ {[%clk 0:00:27]}  Kf1 {[%clk 0:00:08]} 52. Kg5 {[%clk 0:00:27]}  Kg2 {[%clk 0:00:07]} 53. Qe4+ {[%clk 0:00:27]}  Kg1 {[%clk 0:00:07]} 54. Qg4+ {[%clk 0:00:27]}  Kh2 {[%clk 0:00:07]} 55. Qf3 {[%clk 0:00:26]}  Kg1 {[%clk 0:00:07]} 56. Qg3+ {[%clk 0:00:26]}  Kf1 {[%clk 0:00:04]} 57. Kf4 {[%clk 0:00:26]}  a3 {[%clk 0:00:04]} 58. Ke3 {[%clk 0:00:25]} 1-0


[Site "https://www.chess.com"]

[Event "Titled Tuesday Blitz April 19 Early 2022"]
[White "Redor, Menandro"]
[Black "Urbina Perez, Juan Antonio"]
[WhiteFideId "5222010"]
[BlackFideId "2217368"]
[WhiteElo "1986"]
[BlackElo "2192"]
[Result "0-1"]
[Round "07"]
[TimeControl "180+1"]
[Date "2022.04.19"]
[WhiteClock "0:00:03"]
[BlackClock "0:00:42"]

1. c3 {[%clk 0:02:51]}  d5 {[%clk 0:02:58]} 2. d4 {[%clk 0:02:52]}  c5 {[%clk 0:02:58]} 3. Bf4 {[%clk 0:02:47]}  cxd4 {[%clk 0:02:54]} 4. cxd4 {[%clk 0:02:48]}  Nc6 {[%clk 0:02:54]} 5. Nc3 {[%clk 0:02:48]}  Nf6 {[%clk 0:02:55]} 6. e3 {[%clk 0:02:48]}  a6 {[%clk 0:02:55]} 7. Bd3 {[%clk 0:02:46]}  Bg4 {[%clk 0:02:54]} 8. Nge2 {[%clk 0:02:44]}  Bxe2 {[%clk 0:02:47]} 9. Qxe2 {[%clk 0:02:41]}  e6 {[%clk 0:02:48]} 10. O-O {[%clk 0:02:40]}  Bd6 {[%clk 0:02:47]} 11. Bg5 {[%clk 0:02:36]}  h6 {[%clk 0:02:46]} 12. Bh4 {[%clk 0:02:31]}  Qc7 {[%clk 0:02:46]} 13. f4 {[%clk 0:02:16]}  g5 {[%clk 0:02:36]} 14. Bg3 {[%clk 0:01:41]}  O-O-O {[%clk 0:02:19]} 15. Rac1 {[%clk 0:01:33]}  Kb8 {[%clk 0:02:18]} 16. Na4 {[%clk 0:01:26]}  Rdg8 {[%clk 0:02:17]} 17. Nc5 {[%clk 0:01:22]}  gxf4 {[%clk 0:02:03]} 18. Bxf4 {[%clk 0:01:20]}  Ne4 {[%clk 0:01:52]} 19. Bxe4 {[%clk 0:01:05]}  Bxf4 {[%clk 0:01:44]} 20. Rxf4 {[%clk 0:01:03]}  dxe4 {[%clk 0:01:44]} 21. Rxe4 {[%clk 0:00:54]}  Rg5 {[%clk 0:01:35]} 22. Rf4 {[%clk 0:00:52]}  Rhg8 {[%clk 0:01:35]} 23. Rf2 {[%clk 0:00:51]}  Qd6 {[%clk 0:01:23]} 24. Qf3 {[%clk 0:00:41]}  Nd8 {[%clk 0:01:07]} 25. g3 {[%clk 0:00:34]}  Rxg3+ {[%clk 0:01:04]} 26. hxg3 {[%clk 0:00:20]}  Rxg3+ {[%clk 0:01:04]} 27. Kf1 {[%clk 0:00:18]}  Rxf3 {[%clk 0:01:04]} 28. Rxf3 {[%clk 0:00:19]}  Qh2 {[%clk 0:01:01]} 29. Nd3 {[%clk 0:00:06]}  Qd2 {[%clk 0:00:51]} 30. Rc3 {[%clk 0:00:03]}  f5 {[%clk 0:00:42]} 0-1


[Site "https://www.chess.com"]

[Event "Titled Tuesday Blitz April 19 Early 2022"]
[White "Reprintsev, Alexander"]
[Black "Bilych, Olexiy"]
[WhiteFideId "14100541"]
[BlackFideId "14156504"]
[WhiteElo "2108"]
[BlackElo "2176"]
[Result "0-1"]
[Round "07"]
[TimeControl "180+1"]
[Date "2022.04.19"]
[WhiteClock "0:00:30"]
[BlackClock "0:01:16"]

1. e4 {[%clk 0:02:52]}  e5 {[%clk 0:02:59]} 2. Nf3 {[%clk 0:02:51]}  Nc6 {[%clk 0:03:00]} 3. Bc4 {[%clk 0:02:49]}  Bc5 {[%clk 0:02:59]} 4. b4 {[%clk 0:02:49]}  Bxb4 {[%clk 0:02:59]} 5. c3 {[%clk 0:02:49]}  Ba5 {[%clk 0:03:00]} 6. d4 {[%clk 0:02:48]}  b5 {[%clk 0:02:57]} 7. Bxb5 {[%clk 0:02:40]}  Nxd4 {[%clk 0:02:29]} 8. Nxd4 {[%clk 0:02:14]}  exd4 {[%clk 0:02:30]} 9. O-O {[%clk 0:02:03]}  Ne7 {[%clk 0:02:04]} 10. cxd4 {[%clk 0:01:59]}  O-O {[%clk 0:02:03]} 11. Ba3 {[%clk 0:01:56]}  d6 {[%clk 0:02:02]} 12. Nd2 {[%clk 0:01:53]}  Bb6 {[%clk 0:01:57]} 13. Nb3 {[%clk 0:01:51]}  Bb7 {[%clk 0:01:57]} 14. Qd3 {[%clk 0:01:45]}  Ng6 {[%clk 0:01:48]} 15. Bc1 {[%clk 0:01:37]}  Qh4 {[%clk 0:01:43]} 16. f3 {[%clk 0:01:27]}  a6 {[%clk 0:01:40]} 17. Bc4 {[%clk 0:01:20]}  Ne5 {[%clk 0:01:39]} 18. Qe2 {[%clk 0:01:17]}  Nxc4 {[%clk 0:01:36]} 19. Qxc4 {[%clk 0:01:17]}  a5 {[%clk 0:01:37]} 20. Rd1 {[%clk 0:01:05]}  a4 {[%clk 0:01:33]} 21. Nd2 {[%clk 0:01:00]}  Ba6 {[%clk 0:01:29]} 22. Qc3 {[%clk 0:00:50]}  Be2 {[%clk 0:01:28]} 23. g3 {[%clk 0:00:44]}  Qf6 {[%clk 0:01:28]} 24. e5 {[%clk 0:00:31]}  dxe5 {[%clk 0:01:24]} 25. Ne4 {[%clk 0:00:31]}  Qxf3 {[%clk 0:01:16]} 26. Qxf3 {[%clk 0:00:31]}  Bxf3 {[%clk 0:01:17]} 27. Nc5 {[%clk 0:00:30]}  Bxd1 {[%clk 0:01:16]} 0-1


[Site "https://www.chess.com"]